fUST/lending_fUST_20251213
["ID","MTS","AMOUNT","RATE_DAILY","PERIOD"]
[398405345,1765617054903,-500.0,0.00027671,3]
[398405346,1765617054913,-1706.88,0.00027671,3]
[398405347,1765617054926,-651.93,0.00027671,3]
[398405348,1765617054936,-500.0,0.00027671,3]
[398405349,1765617054945,-649.92,0.00027671,3]
[398405350,1765617054955,-530.61074961,0.00027671,3]
[398405351,1765617054966,-500.0,0.00027671,3]
[398405352,1765617054975,-500.0,0.00027671,3]
[398405353,1765617054985,-574.58618227,0.00027671,2]
[398405354,1765617054996,-500.0,0.00027671,3]
[398405355,1765617055005,-1655.21,0.00027671,3]
[398405356,1765617055016,-500.0,0.00027671,3]
[398405357,1765617055026,-500.0,0.00027671,3]
[398405358,1765617055037,-500.0,0.00027671,3]
[398405359,1765617055047,-532.96,0.00027671,3]
[398405360,1765617055057,-500.0,0.00027671,3]
[398405361,1765617055068,-500.0,0.00027671,3]
[398405362,1765617055078,-503.57,0.00027671,3]
[398405363,1765617055088,-652.81,0.00027671,3]
[398405364,1765617055097,-500.0,0.00027671,3]
[398405365,1765617055106,-1422.67,0.00027671,3]
[398405366,1765617055118,-589.78,0.00027671,3]
[398405367,1765617055128,-500.0,0.00027671,3]
[398405368,1765617055138,-2352.96,0.00027671,3]
[398405369,1765617055147,-500.0,0.00027671,3]
[398405370,1765617055156,-2666.95,0.00027671,3]
[398405371,1765617055167,-500.0,0.00027671,3]
[398405372,1765617055176,-500.0,0.00027671,3]
[398405373,1765617055186,-500.0,0.00027671,3]
[398405374,1765617055195,-500.0,0.00027671,3]
[398405375,1765617055207,-510.61051708,0.00027671,3]
[398405376,1765617055217,-851.44,0.00027671,3]
[398405377,1765617055226,-500.0,0.00027671,3]
[398405378,1765617055235,-819.63,0.00027671,3]
[398405379,1765617055245,-500.0,0.00027671,3]
[398405380,1765617055254,-500.0,0.00027671,3]
[398405381,1765617055263,-2653.96,0.00027671,3]
[398405382,1765617055273,-927.33,0.00027671,3]
[398405383,1765617055282,-500.0,0.00027671,3]
[398405384,1765617055291,-500.0,0.00027671,3]
[398405385,1765617055300,-500.0,0.00027671,3]
[398405386,1765617055309,-500.0,0.00027671,3]
[398405387,1765617055318,-500.0,0.00027671,3]
[398405388,1765617055328,-710.47,0.00027671,3]
[398405389,1765617055448,-500.0,0.00027671,3]
[398405390,1765617055458,-1285.14,0.00027671,3]
[398405391,1765617055467,-523.45652871,0.00027671,3]
[398405392,1765617055476,-500.0,0.00027671,3]
[398405393,1765617055487,-500.0,0.00027671,3]
[398405394,1765617055497,-1412.4,0.00027671,3]
[398405395,1765617055506,-500.0,0.00027671,3]
[398405396,1765617055517,-500.0,0.00027671,3]
[398405397,1765617055528,-500.0,0.00027671,3]
[398405398,1765617055538,-500.0,0.00027671,3]
[398405399,1765617055547,-624.02,0.00027671,3]
[398405400,1765617055557,-464.54023948,0.00027671,3]
[398405401,1765617055566,-290.34927941,0.00027671,3]
[398405402,1765617055576,-500.0,0.00027671,3]
[398405403,1765617055586,-533.34,0.00027671,3]
[398405404,1765617055596,-501.63792881,0.00027671,3]
[398405405,1765617055606,-500.0,0.00027671,3]
[398405406,1765617055615,-848.09,0.00027671,3]
[398405407,1765617055625,-500.0,0.00027671,3]
[398405408,1765617055635,-500.0,0.00027671,3]
[398405409,1765617055645,-1628.79,0.00027671,3]
[398405410,1765617055655,-500.0,0.00027671,3]
[398405411,1765617055665,-500.0,0.00027671,3]
[398405412,1765617055675,-367.59260129,0.00027671,3]
[398405413,1765617055685,-500.0,0.00027671,3]
[398405414,1765617055696,-500.0,0.00027671,3]
[398405415,1765617055705,-2704.91,0.00027671,3]
[398405416,1765617055715,-500.0,0.00027671,3]
[398405417,1765617055725,-500.0,0.00027671,3]
[398405418,1765617055735,-895.83,0.00027671,3]
[398405419,1765617055745,-500.0,0.00027671,3]
[398405420,1765617055755,-813.49,0.00027671,3]
[398405421,1765617055765,-875.5,0.00027671,3]
[398405422,1765617055775,-500.0,0.00027671,3]
[398405423,1765617055785,-500.0,0.00027671,3]
[398405424,1765617055795,-500.0,0.00027671,3]
[398405425,1765617055805,-500.0,0.00027671,3]
[398405426,1765617055815,-987.93,0.00027671,3]
[398405427,1765617055824,-500.0,0.00027671,3]
[398405428,1765617055833,-778.78,0.00027671,3]
[398405429,1765617055843,-2765.6,0.00027671,3]
[398405430,1765617055852,-500.0,0.00027671,3]
[398405431,1765617055862,-500.0,0.00027671,3]
[398405432,1765617055871,-647.49708413,0.00027671,3]
[398405433,1765617055880,-500.0,0.00027671,3]
[398405434,1765617055890,-500.0,0.00027671,3]
[398405435,1765617055899,-1297.16,0.00027671,3]
[398405436,1765617055909,-500.0,0.00027671,3]
[398405437,1765617055922,-500.0,0.00027671,3]
[398405438,1765617055932,-500.0,0.00027671,3]
[398405439,1765617055942,-500.0,0.00027671,3]
[398405440,1765617055953,-500.0,0.00027671,3]
[398405441,1765617055963,-835.29,0.00027671,3]
[398405442,1765617055973,-1308.02,0.00027671,3]
[398405443,1765617055985,-500.0,0.00027671,3]
[398405444,1765617055996,-1550.27,0.00027671,3]
[398405445,1765617056005,-500.0,0.00027671,3]
[398405446,1765617056015,-500.0,0.00027671,3]
[398405447,1765617056025,-609.11,0.00027671,3]
[398405448,1765617056035,-500.0,0.00027671,3]
[398405449,1765617056044,-1130.18,0.00027671,3]
[398405450,1765617056053,-500.0,0.00027671,3]
[398405451,1765617056063,-468.98794575,0.00027671,3]
[398405452,1765617056073,-960.39,0.00027671,3]
[398405453,1765617056084,-1159.91,0.00027671,3]
[398405454,1765617056093,-500.0,0.00027671,3]
[398405455,1765617056104,-500.0,0.00027671,3]
[398405456,1765617056115,-500.0,0.00027671,3]
[398405457,1765617056126,-500.0,0.00027671,3]
[398405458,1765617056135,-500.0,0.00027671,3]
[398405459,1765617056145,-500.0,0.00027671,3]
[398405460,1765617056155,-500.0,0.00027671,3]
[398405461,1765617056167,-500.0,0.00027671,3]
[398405462,1765617056178,-807.67,0.00027671,3]
[398405463,1765617056188,-576.35,0.00027671,3]
[398405464,1765617056198,-500.0,0.00027671,3]
[398405465,1765617056207,-500.0,0.00027671,3]
[398405466,1765617056218,-500.0,0.00027671,3]
[398405467,1765617056230,-500.0,0.00027671,3]
[398405468,1765617056241,-1599.25,0.00027671,3]
[398405469,1765617056252,-501.26023879,0.00027671,3]
[398405470,1765617056262,-500.0,0.00027671,3]
[398405471,1765617056273,-1139.23,0.00027671,3]
[398405472,1765617056283,-500.0,0.00027671,3]
[398405473,1765617056294,-500.0,0.00027671,3]
[398405474,1765617056304,-1513.97,0.00027671,3]
[398405475,1765617056314,-500.0,0.00027671,3]
[398405476,1765617056325,-500.0,0.00027671,3]
[398405477,1765617056335,-500.0,0.00027671,3]
[398405478,1765617056345,-500.0,0.00027671,3]
[398405479,1765617056355,-500.0,0.00027671,3]
[398405480,1765617056365,-500.0,0.00027671,3]
[398405481,1765617056375,-842.23,0.00027671,3]
[398405482,1765617056384,-2647.09,0.00027671,3]
[398405483,1765617056393,-1111.13,0.00027671,3]
[398405484,1765617056403,-500.0,0.00027671,3]
[398405485,1765617056413,-512.22,0.00027671,3]
[398405486,1765617056423,-500.0,0.00027671,3]
[398405487,1765617056432,-500.0,0.00027671,3]
[398405488,1765617056441,-500.0,0.00027671,3]
[398405489,1765617056452,-500.0,0.00027671,3]
[398405490,1765617056463,-500.0,0.00027671,3]
[398405491,1765617056474,-500.0,0.00027671,3]
[398405492,1765617056485,-500.0,0.00027671,3]
[398405493,1765617056495,-500.0,0.00027671,3]
[398405494,1765617056504,-617.3,0.00027671,3]
[398405495,1765617056514,-500.0,0.00027671,3]
[398405496,1765617056524,-1129.44,0.00027671,3]
[398405497,1765617056533,-569.00620713,0.00027671,3]
[398405498,1765617056543,-504.63,0.00027671,3]
[398405499,1765617056552,-500.0,0.00027671,3]
[398405500,1765617056561,-500.0,0.00027671,3]
[398405501,1765617056571,-1042.65,0.00027671,3]
[398405502,1765617056580,-500.0,0.00027671,3]
[398405503,1765617056589,-1774.87,0.00027671,3]
[398405504,1765617056599,-408.43160649,0.00027671,3]
[398405505,1765617056608,-500.0,0.00027671,3]
[398405506,1765617056618,-983.64,0.00027671,3]
[398405507,1765617056628,-1028.12,0.00027671,3]
[398405508,1765617056638,-500.0,0.00027671,3]
[398405509,1765617056648,-500.0,0.00027671,3]
[398405510,1765617056657,-500.0,0.00027671,3]
[398405511,1765617056667,-1971.47,0.00027671,3]
[398405512,1765617056677,-500.0,0.00027671,3]
[398405513,1765617056686,-500.0,0.00027671,3]
[398405514,1765617056696,-1206.52,0.00027671,3]
[398405515,1765617056705,-508.56366708,0.00027671,3]
[398405516,1765617056715,-500.0,0.00027671,3]
[398405517,1765617056725,-500.0,0.00027671,3]
[398405518,1765617056734,-500.0,0.00027671,3]
[398405519,1765617056744,-500.0,0.00027671,3]
[398405520,1765617056753,-500.0,0.00027671,3]
[398405521,1765617056763,-500.0,0.00027671,3]
[398405522,1765617056772,-500.0,0.00027671,3]
[398405523,1765617056781,-500.0,0.00027671,3]
[398405524,1765617056791,-2873.75,0.00027671,3]
[398405525,1765617056801,-500.0,0.00027671,3]
[398405526,1765617056810,-500.0,0.00027671,3]
[398405527,1765617056819,-381.05013682,0.00027671,3]
[398405528,1765617056829,-500.0,0.00027671,3]
[398405529,1765617056838,-500.0,0.00027671,3]
[398405530,1765617056847,-500.0,0.00027671,3]
[398405531,1765617056857,-513.09005531,0.00027671,3]
[398405532,1765617056866,-500.0,0.00027671,3]
[398405533,1765617056875,-500.0,0.00027671,3]
[398405534,1765617056884,-500.0,0.00027671,3]
[398405535,1765617056893,-2079.15,0.00027671,3]
[398405536,1765617056903,-502.240331,0.00027671,3]
[398405537,1765617056913,-500.0,0.00027671,3]
[398405538,1765617056924,-1274.09,0.00027671,3]
[398405539,1765617056933,-955.7,0.00027671,3]
[398405540,1765617056942,-500.0,0.00027671,3]
[398405541,1765617056951,-1232.72,0.00027671,3]
[398405542,1765617056961,-500.0,0.00027671,3]
[398405543,1765617056970,-500.0,0.00027671,3]
[398405544,1765617056980,-500.0,0.00027671,3]
[398405545,1765617056989,-500.0,0.00027671,3]
[398405546,1765617056999,-500.0,0.00027671,3]
[398405547,1765617057008,-511.04388823,0.00027671,3]
[398405548,1765617057017,-500.0,0.00027671,3]
[398405549,1765617057026,-500.0,0.00027671,3]
[398405550,1765617057035,-531.73024621,0.00027671,3]
[398405551,1765617057044,-500.0,0.00027671,3]
[398405552,1765617057053,-500.0,0.00027671,3]
[398405553,1765617057062,-500.0,0.00027671,3]
[398405554,1765617057072,-500.0,0.00027671,3]
[398405555,1765617057081,-1057.28,0.00027671,3]
[398405556,1765617057090,-500.0,0.00027671,2]
[398405557,1765617057100,-500.0,0.00027671,3]
[398405558,1765617057109,-500.0,0.00027671,3]
[398405559,1765617057118,-500.0,0.00027671,3]
[398405560,1765617057127,-898.31,0.00027671,3]
[398405561,1765617057137,-500.0,0.00027671,3]
[398405562,1765617057146,-500.0,0.00027671,3]
[398405563,1765617057155,-772.85,0.00027671,3]
[398405564,1765617057164,-500.0,0.00027671,3]
[398405565,1765617057173,-819.41,0.00027671,3]
[398405566,1765617057183,-500.0,0.00027671,3]
[398405567,1765617057298,-788.38,0.00027671,3]
[398405568,1765617057308,-500.0,0.00027671,3]
[398405569,1765617057318,-500.0,0.00027671,3]
[398405570,1765617057327,-764.33,0.00027671,3]
[398405571,1765617057338,-748.25,0.00027671,3]
[398405572,1765617057348,-836.29,0.00027671,3]
[398405573,1765617057358,-500.0,0.00027671,3]
[398405574,1765617057367,-500.0,0.00027671,3]
[398405575,1765617057377,-500.0,0.00027671,3]
[398405576,1765617057387,-500.0,0.00027671,3]
[398405577,1765617057396,-500.0,0.00027671,3]
[398405578,1765617057407,-503.12792102,0.00027671,3]
[398405579,1765617057417,-500.0,0.00027671,3]
[398405580,1765617057429,-500.0,0.00027671,3]
[398405581,1765617057440,-500.0,0.00027671,3]
[398405582,1765617057450,-1629.1,0.00027671,3]
[398405583,1765617057462,-500.0,0.00027671,3]
[398405584,1765617057473,-1136.76,0.00027671,3]
[398405585,1765617057482,-500.0,0.00027671,3]
[398405586,1765617057492,-500.0,0.00027671,3]
[398405587,1765617057501,-500.0,0.00027671,3]
[398405588,1765617057512,-500.0,0.00027671,3]
[398405589,1765617057522,-500.0,0.00027671,3]
[398405590,1765617057532,-293.65961641,0.00027671,3]
[398405591,1765617057542,-500.0,0.00027671,3]
[398405592,1765617057551,-500.0,0.00027671,3]
[398405593,1765617057561,-500.0,0.00027671,3]
[398405594,1765617057572,-2503.99,0.00027671,3]
[398405595,1765617057583,-500.0,0.00027671,3]
[398405596,1765617057594,-500.0,0.00027671,3]
[398405597,1765617057603,-1038.24,0.00027671,3]
[398405598,1765617057612,-842.87,0.00027671,3]
[398405599,1765617057623,-1132.01,0.00027671,3]
[398405600,1765617057633,-723.84,0.00027671,3]
[398405601,1765617057642,-500.0,0.00027671,3]
[398405602,1765617057652,-500.0,0.00027671,3]
[398405603,1765617057661,-500.0,0.00027671,3]
[398405604,1765617057671,-1106.65,0.00027671,3]
[398405605,1765617057682,-512.36,0.00027671,3]
[398405606,1765617057691,-1634.87,0.00027671,3]
[398405607,1765617057701,-500.0,0.00027671,3]
[398405608,1765617057710,-500.0,0.00027671,3]
[398405609,1765617057720,-802.8,0.00027671,3]
[398405610,1765617057729,-500.0,0.00027671,3]
[398405611,1765617057739,-1706.64,0.00027671,3]
[398405612,1765617057748,-1633.25,0.00027671,3]
[398405613,1765617057758,-687.9,0.00027671,3]
[398405614,1765617057767,-1178.32,0.00027671,3]
[398405615,1765617057776,-978.5,0.00027671,3]
[398405616,1765617057786,-500.0,0.00027671,3]
[398405617,1765617057796,-500.0,0.00027671,3]
[398405618,1765617057806,-500.0,0.00027671,3]
[398405619,1765617057815,-500.0,0.00027671,3]
[398405620,1765617057826,-604.07585668,0.00027671,3]
[398405621,1765617057836,-500.0,0.00027671,3]
[398405622,1765617057847,-500.0,0.00027671,3]
[398405623,1765617057858,-2394.04,0.00027671,3]
[398405624,1765617057867,-501.87384199,0.00027671,3]
[398405625,1765617057876,-2141.51,0.00027671,3]
[398405626,1765617057885,-500.0,0.00027671,3]
[398405627,1765617057895,-958.87,0.00027671,3]
[398405628,1765617057904,-2199.51,0.00027671,3]
[398405629,1765617057914,-1204.0,0.00027671,3]
[398405630,1765617057925,-1211.46,0.00027671,3]
[398405631,1765617057935,-500.0,0.00027671,3]
[398405632,1765617057944,-500.0,0.00027671,3]
[398405633,1765617057953,-500.0,0.00027671,3]
[398405634,1765617057967,-500.0,0.00027671,3]
[398405635,1765617057976,-592.66040497,0.00027671,3]
[398405636,1765617057986,-501.04799927,0.00027671,3]
[398405637,1765617057996,-500.0,0.00027671,3]
[398405638,1765617058005,-500.0,0.00027671,3]
[398405639,1765617058015,-500.0,0.00027671,3]
[398405640,1765617058026,-339.8708013,0.00027671,3]
[398405641,1765617058035,-1484.03,0.00027671,3]
[398405642,1765617058045,-788.62,0.00027671,3]
[398405643,1765617058054,-541.28,0.00027671,3]
[398405644,1765617058064,-500.0,0.00027671,3]
[398405645,1765617058073,-1576.26,0.00027671,3]
[398405646,1765617058082,-500.0,0.00027671,3]
[398405647,1765617058091,-500.0,0.00027671,3]
[398405648,1765617058100,-500.0,0.00027671,3]
[398405649,1765617058116,-538.43,0.00027671,3]
[398405650,1765617058134,-500.0,0.00027671,3]
[398405651,1765617058150,-500.0,0.00027671,3]
[398405652,1765617058168,-500.0,0.00027671,3]
[398405653,1765617058188,-1753.96,0.00027671,3]
[398405654,1765617058204,-1893.62,0.00027671,3]
[398405655,1765617058221,-1559.0,0.00027671,3]
[398405656,1765617058238,-1715.03,0.00027671,3]
[398405657,1765617058252,-1728.44,0.00027671,3]
[398405658,1765617058270,-500.0,0.00027671,3]
[398405659,1765617058287,-500.0,0.00027671,3]
[398405660,1765617058307,-500.0,0.00027671,3]
[398405661,1765617058319,-500.0,0.00027671,3]
[398405662,1765617058337,-500.0,0.00027671,3]
[398405663,1765617058352,-500.0,0.00027671,3]
[398405664,1765617058369,-500.0,0.00027671,3]
[398405665,1765617058382,-500.0,0.00027671,3]
[398405666,1765617058397,-500.0,0.00027671,3]
[398405667,1765617058412,-500.0,0.00027671,3]
[398405668,1765617058429,-500.0,0.00027671,3]
[398405669,1765617058444,-500.0,0.00027671,3]
[398405670,1765617058458,-500.0,0.00027671,3]
[398405671,1765617058473,-2558.19,0.00027671,3]
[398405672,1765617058487,-500.0,0.00027671,3]
[398405673,1765617058502,-500.0,0.00027671,3]
[398405674,1765617058516,-2327.61,0.00027671,3]
[398405675,1765617058531,-656.92,0.00027671,3]
[398405676,1765617058545,-500.0,0.00027671,3]
[398405677,1765617058560,-1829.66,0.00027671,3]
[398405678,1765617058573,-500.0,0.00027671,3]
[398405679,1765617058588,-500.0,0.00027671,3]
[398405680,1765617058602,-500.0,0.00027671,3]
[398405681,1765617058617,-500.0,0.00027671,3]
[398405682,1765617058632,-500.0,0.00027671,3]
[398405683,1765617058646,-754.81,0.00027671,3]
[398405684,1765617058661,-500.0,0.00027671,3]
[398405685,1765617058675,-500.0,0.00027671,3]
[398405686,1765617058690,-500.0,0.00027671,3]
[398405687,1765617058705,-500.0,0.00027671,3]
[398405688,1765617058718,-1088.51,0.00027671,3]
[398405689,1765617058733,-500.0,0.00027671,3]
[398405690,1765617058748,-500.0,0.00027671,3]
[398405691,1765617058763,-500.0,0.00027671,3]
[398405692,1765617058776,-500.0,0.00027671,3]
[398405693,1765617058791,-2152.22,0.00027671,3]
[398405694,1765617058806,-1575.55,0.00027671,3]
[398405695,1765617058821,-1036.88,0.00027671,3]
[398405696,1765617058835,-500.0,0.00027671,3]
[398405697,1765617058849,-500.0,0.00027671,3]
[398405698,1765617058864,-624.37834346,0.00027671,3]
[398405699,1765617058880,-500.0,0.00027671,3]
[398405700,1765617058895,-1210.75,0.00027671,3]
[398405701,1765617058910,-500.0,0.00027671,3]
[398405702,1765617058929,-500.0,0.00027671,3]
[398405703,1765617058945,-500.0,0.00027671,3]
[398405704,1765617058963,-500.0,0.00027671,3]
[398405705,1765617058981,-500.0,0.00027671,3]
[398405706,1765617058995,-500.0,0.00027671,3]
[398405707,1765617059008,-500.0,0.00027671,3]
[398405708,1765617059022,-500.0,0.00027671,3]
[398405709,1765617059036,-500.0,0.00027671,3]
[398405710,1765617059050,-500.0,0.00027671,3]
[398405711,1765617059065,-500.0,0.00027671,3]
[398405712,1765617059079,-500.0,0.00027671,3]
[398405713,1765617059094,-1371.34,0.00027671,3]
[398405714,1765617059109,-500.0,0.00027671,3]
[398405715,1765617059124,-501.338764,0.00027671,3]
[398405716,1765617059140,-1544.08,0.00027671,3]
[398405717,1765617059155,-500.0,0.00027671,3]
[398405718,1765617059169,-500.0,0.00027671,3]
[398405719,1765617059184,-500.0,0.00027671,3]
[398405720,1765617059199,-500.0,0.00027671,3]
[398405721,1765617059213,-964.54,0.00027671,3]
[398405722,1765617059229,-500.0,0.00027671,3]
[398405723,1765617059243,-500.0,0.00027671,3]
[398405724,1765617059257,-2211.52,0.00027671,3]
[398405725,1765617059271,-500.0,0.00027671,3]
[398405726,1765617059287,-500.0,0.00027671,3]
[398405727,1765617059302,-500.0,0.00027671,3]
[398405728,1765617059317,-715.72,0.00027671,3]
[398405729,1765617059331,-500.0,0.00027671,3]
[398405730,1765617059347,-500.0,0.00027671,3]
[398405731,1765617059527,-500.0,0.00027671,3]
[398405732,1765617059545,-500.0,0.00027671,3]
[398405733,1765617059555,-644.23,0.00027671,3]
[398405734,1765617059565,-500.0,0.00027671,3]
[398405735,1765617059575,-500.0,0.00027671,3]
[398405736,1765617059585,-500.0,0.00027671,3]
[398405737,1765617059595,-500.0,0.00027671,3]
[398405738,1765617059606,-1282.87,0.00027671,3]
[398405739,1765617059616,-562.72,0.00027671,3]
[398405740,1765617059626,-749.99,0.00027671,3]
[398405741,1765617059635,-243.43580969,0.00027671,3]
[398405742,1765617059645,-1878.73,0.00027671,3]
[398405743,1765617059655,-500.0,0.00027671,3]
[398405744,1765617059664,-500.0,0.00027671,3]
[398405745,1765617059674,-539.53227788,0.00027671,3]
[398405746,1765617059684,-308.51047615,0.00027671,3]
[398405747,1765617059693,-911.18,0.00027671,3]
[398405748,1765617059703,-1507.87,0.00027671,3]
[398405749,1765617059715,-500.0,0.00027671,3]
[398405750,1765617059724,-690.11,0.00027671,3]
[398405751,1765617059734,-927.44,0.00027671,3]
[398405752,1765617059745,-500.0,0.00027671,3]
[398405753,1765617059754,-500.0,0.00027671,3]
[398405754,1765617059765,-1770.22,0.00027671,3]
[398405755,1765617059774,-750.26,0.00027671,3]
[398405756,1765617059784,-500.0,0.00027671,3]
[398405757,1765617059794,-500.0,0.00027671,3]
[398405758,1765617059805,-787.25,0.00027671,3]
[398405759,1765617059816,-863.65,0.00027671,3]
[398405760,1765617059826,-500.0,0.00027671,3]
[398405761,1765617059836,-270.9720946,0.00027671,3]
[398405762,1765617059847,-500.0,0.00027671,3]
[398405763,1765617059856,-500.36605315,0.00027671,3]
[398405764,1765617059866,-1287.94,0.00027671,3]
[398405765,1765617059877,-500.0,0.00027671,3]
[398405766,1765617059887,-2003.21,0.00027671,3]
[398405767,1765617059898,-500.0,0.00027671,2]
[398405768,1765617059909,-500.0,0.00027671,3]
[398405769,1765617059925,-500.0,0.00027671,3]
[398405770,1765617059935,-500.0,0.00027671,3]
[398405771,1765617059945,-500.0,0.00027671,3]
[398405772,1765617059954,-757.47,0.00027671,3]
[398405773,1765617059965,-1230.98,0.00027671,3]
[398405774,1765617059977,-500.0,0.00027671,3]
[398405775,1765617059989,-742.57,0.00027671,3]
[398405776,1765617060000,-500.0,0.00027671,3]
[398405777,1765617060010,-1961.04,0.00027671,3]
[398405778,1765617060019,-1040.17,0.00027671,3]
[398405779,1765617060028,-500.0,0.00027671,3]
[398405780,1765617060037,-500.0,0.00027671,3]
[398405781,1765617060047,-1227.64,0.00027671,3]
[398405782,1765617060056,-500.0,0.00027671,3]
[398405783,1765617060065,-500.0,0.00027671,3]
[398405784,1765617060075,-804.14,0.00027671,3]
[398405785,1765617060086,-500.0,0.00027671,3]
[398405786,1765617060096,-1602.27,0.00027671,3]
[398405787,1765617060106,-2358.14,0.00027671,3]
[398405788,1765617060116,-500.0,0.00027671,3]
[398405789,1765617060127,-623.59534977,0.00027671,3]
[398405790,1765617060136,-500.0,0.00027671,3]
[398405791,1765617060146,-500.0,0.00027671,3]
[398405792,1765617060159,-500.0,0.00027671,3]
[398405793,1765617060169,-500.0,0.00027671,3]
[398405794,1765617060180,-500.0,0.00027671,3]
[398405795,1765617060190,-500.0,0.00027671,3]
[398405796,1765617060199,-500.0,0.00027671,3]
[398405797,1765617060209,-500.0,0.00027671,3]
[398405798,1765617060218,-758.05,0.00027671,3]
[398405799,1765617060228,-2188.95,0.00027671,3]
[398405800,1765617060237,-500.0,0.00027671,3]
[398405801,1765617060247,-500.0,0.00027671,3]
[398405802,1765617060258,-500.0,0.00027671,3]
[398405803,1765617060268,-500.0,0.00027671,3]
[398405804,1765617060277,-1467.28,0.00027671,3]
[398405805,1765617060288,-643.24,0.00027671,3]
[398405806,1765617060298,-500.0,0.00027671,3]
[398405807,1765617060308,-1893.58,0.00027671,3]
[398405808,1765617060318,-500.65882831,0.00027671,3]
[398405809,1765617060327,-2044.9,0.00027671,3]
[398405810,1765617060336,-500.0,0.00027671,3]
[398405811,1765617060345,-500.0,0.00027671,3]
[398405812,1765617060354,-500.0,0.00027671,3]
[398405813,1765617060363,-500.0,0.00027671,3]
[398405814,1765617060372,-502.58415603,0.00027671,3]
[398405815,1765617060382,-500.0,0.00027671,3]
[398405816,1765617060391,-500.0,0.00027671,3]
[398405817,1765617060400,-882.53,0.00027671,3]
[398405818,1765617060409,-797.56,0.00027671,3]
[398405819,1765617060417,-500.0,0.00027671,3]
[398405820,1765617060427,-500.0,0.00027671,3]
[398405821,1765617060437,-2394.02,0.00027671,3]
[398405822,1765617060446,-500.0,0.00027671,3]
[398405823,1765617060455,-500.0,0.00027671,3]
[398405824,1765617060465,-500.0,0.00027671,3]
[398405825,1765617060474,-500.0,0.00027671,3]
[398405826,1765617060484,-2469.26,0.00027671,3]
[398405827,1765617060493,-725.09,0.00027671,3]
[398405828,1765617060503,-2460.35,0.00027671,3]
[398405829,1765617060512,-500.0,0.00027671,3]
[398405830,1765617060521,-500.0,0.00027671,3]
[398405831,1765617060531,-621.99,0.00027671,3]
[398405832,1765617060542,-500.0,0.00027671,3]
[398405833,1765617060552,-500.0,0.00027671,3]
[398405834,1765617060561,-500.0,0.00027671,3]
[398405835,1765617060571,-1840.29,0.00027671,3]
[398405836,1765617060582,-500.0,0.00027671,3]
[398405837,1765617060593,-500.0,0.00027671,3]
[398405838,1765617060602,-500.0,0.00027671,3]
[398405839,1765617060614,-2395.32,0.00027671,3]
[398405840,1765617060623,-539.27,0.00027671,3]
[398405841,1765617060634,-1618.61,0.00027671,3]
[398405842,1765617060643,-1165.82,0.00027671,3]
[398405843,1765617060653,-500.0,0.00027671,3]
[398405844,1765617060663,-2371.07,0.00027671,3]